bitfinex/quotes_BTCUSD_20250522
["timestamp","ask_amount","ask_price","bid_price","bid_amount"]
[1747895602728,0.53292542,110670.0,110660.0,1.08162974]
[1747895602910,0.53292542,110670.0,110660.0,1.09066642]
[1747895603055,0.54196072,110670.0,110660.0,1.08162974]
[1747895603276,0.19875253,110690.0,110680.0,0.0296]
[1747895603475,0.19875301,110690.0,110680.0,0.34]
[1747895603732,0.54192586,110690.0,110680.0,0.34]
[1747895603908,0.54192586,110690.0,110680.0,0.6026677]
[1747895604104,0.5419253,110690.0,110680.0,0.6026677]
[1747895604331,0.52385764,110690.0,110680.0,0.82110379]
[1747895604538,0.56304074,110700.0,110680.0,0.84680764]
[1747895604751,0.18979342,110700.0,110690.0,0.6026677]
[1747895604937,0.83400074,110700.0,110690.0,0.6026677]
[1747895605163,0.18076074,110700.0,110690.0,0.82168664]
[1747895605374,0.46079342,110700.0,110690.0,0.6596677]
[1747895605605,0.47885944,110700.0,110690.0,0.397]
[1747895605776,0.47885944,110700.0,110690.0,0.34]
[1747895605777,0.47886002,110700.0,110690.0,0.34]
[1747895605980,0.460794,110700.0,110690.0,0.34]
[1747895606185,0.18076074,110700.0,110690.0,0.82992055]
[1747895606386,0.45176074,110700.0,110690.0,0.82992063]
[1747895606711,0.46079359,110700.0,110690.0,0.6311677]
[1747895606879,0.46179359,110700.0,110690.0,0.6341677]
[1747895607080,0.18176074,110700.0,110690.0,0.64320193]
[1747895607346,0.45476074,110700.0,110690.0,0.86252087]
[1747895607550,0.19279359,110700.0,110690.0,0.6637677]
[1747895607856,0.45276074,110700.0,110690.0,0.85348664]
[1747895608076,0.45276074,110700.0,110690.0,0.6637677]
[1747895608295,0.46179351,110700.0,110690.0,0.67280193]
[1747895608561,0.46179342,110700.0,110690.0,0.68183608]
[1747895608807,0.47082619,110700.0,110690.0,0.67280193]
[1747895609227,0.47082619,110700.0,110690.0,1.0637677]
[1747895609458,0.47985912,110700.0,110690.0,1.0637677]
[1747895609688,0.64414637,110700.0,110690.0,0.003]
[1747895609906,0.68804542,110700.0,110690.0,0.003]
[1747895610332,0.65984542,110700.0,110690.0,0.003]
[1747895610537,1.07394542,110700.0,110690.0,0.003]
[1747895611011,0.19982701,110700.0,110690.0,0.003]
[1747895611230,0.87105295,110700.0,110690.0,0.2656677]
[1747895611444,0.86202018,110700.0,110690.0,0.003]
[1747895611867,1.00003273,110700.0,110690.0,0.003]
[1747895612288,0.94253273,110700.0,110690.0,0.003]
[1747895612511,0.93349964,110700.0,110690.0,0.003]
[1747895614464,0.98879964,110700.0,110690.0,0.003]
[1747895616159,0.98879964,110700.0,110670.0,0.34]
[1747895616160,0.20780554,110680.0,110670.0,0.34]
[1747895616385,0.47876554,110680.0,110670.0,0.34]
[1747895617424,0.47876554,110680.0,110670.0,0.342]
[1747895617624,0.19877,110680.0,110670.0,0.6046677]
[1747895617833,0.86096489,110680.0,110670.0,0.6046677]
[1747895618043,0.86999961,110680.0,110670.0,0.6046677]
[1747895618492,0.86196464,110680.0,110670.0,0.6086677]
[1747895618709,0.86196456,110680.0,110670.0,0.6355677]
[1747895618884,0.87099945,110680.0,110670.0,0.6355677]
[1747895619117,0.87099937,110680.0,110670.0,0.6355677]
[1747895619298,0.88003426,110680.0,110670.0,0.6355677]
[1747895619663,0.001,110680.0,110670.0,2.05714703]
[1747895619867,0.001,110680.0,110670.0,1.50079433]
[1747895620304,0.001,110680.0,110670.0,1.77179433]
[1747895621402,0.001,110680.0,110670.0,1.51533518]
[1747895621610,0.001,110680.0,110670.0,1.77800288]
[1747895622040,0.001,110680.0,110670.0,1.51533518]
[1747895622251,0.001,110680.0,110670.0,1.17533518]
[1747895622469,0.001,110680.0,110670.0,1.10685933]
[1747895623092,0.001,110680.0,110670.0,1.50685933]
[1747895623298,0.001,110680.0,110670.0,1.52140018]
[1747895624308,0.001,110680.0,110670.0,1.86140018]
[1747895625084,0.001,110680.0,110670.0,2.12406788]
[1747895625710,0.001,110680.0,110670.0,1.86140018]
[1747895626734,0.18170112,110680.0,110670.0,1.70359649]
[1747895626938,0.18170112,110680.0,110670.0,1.68533203]
[1747895627116,0.19073552,110680.0,110670.0,1.67629649]
[1747895627319,0.19073552,110680.0,110670.0,1.68533219]
[1747895627517,0.19073552,110680.0,110670.0,1.41506936]
[1747895627718,0.19073544,110680.0,110670.0,1.42410506]
[1747895628138,0.19073544,110680.0,110670.0,1.41506936]
[1747895628369,0.21783921,110680.0,110670.0,1.3969977]
[1747895628682,0.18170112,110680.0,110670.0,1.60552177]
[1747895628926,0.001,110680.0,110670.0,2.55307677]
[1747895629345,0.001,110680.0,110670.0,2.14143577]
[1747895629554,0.001,110680.0,110670.0,1.88811277]
[1747895629728,0.18170112,110680.0,110670.0,1.58745093]
[1747895629925,0.18170112,110680.0,110670.0,1.55985101]
[1747895630126,0.18170112,110680.0,110670.0,1.6158578]
[1747895630332,0.18170112,110680.0,110670.0,1.62489318]
[1747895630472,0.001,110680.0,110670.0,1.62489261]
[1747895630672,0.001,110680.0,110670.0,2.26572117]
[1747895631283,0.001,110680.0,110670.0,2.01124117]
[1747895631492,0.001,110680.0,110670.0,1.93970017]
[1747895631737,0.001,110680.0,110670.0,2.21690872]
[1747895634077,0.001,110680.0,110670.0,2.48786872]
[1747895636286,0.25284257,110700.0,110690.0,0.19875269]
[1747895636497,0.25284257,110700.0,110690.0,0.53289805]
[1747895636707,0.27994177,110700.0,110690.0,0.2626677]
[1747895636910,0.27090851,110700.0,110690.0,0.6626677]
[1747895637114,0.27994177,110700.0,110690.0,0.6626677]
[1747895637300,0.27994168,110700.0,110690.0,0.6626677]
[1747895638160,0.28094168,110700.0,110690.0,0.6656677]
[1747895638385,0.28194168,110700.0,110690.0,0.6656677]
[1747895638983,0.28194168,110700.0,110690.0,0.2656677]
[1747895639413,0.20073566,110700.0,110690.0,0.6656677]
[1747895640079,0.18266972,110700.0,110690.0,0.6656677]
[1747895640278,0.45362972,110700.0,110690.0,0.6656677]
[1747895640500,0.45362972,110700.0,110690.0,0.86442055]
[1747895640706,0.4626624,110700.0,110690.0,0.67470177]
[1747895640964,0.4626624,110700.0,110690.0,2.0952982]
[1747895640965,0.002,110700.0,110690.0,2.0952982]
[1747895641181,0.002,110700.0,110690.0,2.14296577]
[1747895641391,0.002,110700.0,110690.0,1.70468677]
[1747895641813,0.19170115,110700.0,110690.0,1.50593449]
[1747895642024,0.18266847,110700.0,110690.0,0.93271886]
[1747895642237,0.19170115,110700.0,110690.0,1.20442055]
[1747895642447,0.19170115,110700.0,110690.0,1.19538656]
[1747895643013,0.19170115,110700.0,110690.0,1.20442047]
[1747895643443,0.19170115,110700.0,110690.0,1.0056677]
[1747895643634,0.18266847,110700.0,110690.0,1.22248853]
[1747895643854,0.19170115,110700.0,110690.0,1.22248869]
[1747895644055,0.20073408,110700.0,110690.0,1.20442079]
[1747895644281,0.20976693,110700.0,110690.0,1.01470193]
[1747895644507,0.20976693,110700.0,110690.0,1.0056677]
[1747895644970,0.2460006,110700.0,110690.0,1.0056677]
[1747895645426,0.21890124,110700.0,110690.0,1.18635249]
[1747895645651,0.19170115,110700.0,110690.0,1.20442087]
[1747895645877,0.20976701,110700.0,110690.0,1.19538672]
[1747895646044,0.20976701,110700.0,110690.0,1.0056677]
[1747895646210,0.20976709,110700.0,110690.0,1.0056677]
[1747895646435,0.20976701,110700.0,110690.0,1.01470193]
[1747895646642,0.200734,110700.0,110690.0,1.01470193]
[1747895646863,0.20976701,110700.0,110690.0,1.0056677]
[1747895647271,0.200734,110700.0,110690.0,1.0056677]
[1747895647477,0.200734,110700.0,110690.0,1.01470185]
[1747895647693,0.200734,110700.0,110690.0,1.0056677]
[1747895648072,0.200734,110700.0,110690.0,0.6056677]
[1747895648073,0.20976701,110700.0,110690.0,0.6056677]
[1747895648255,0.20976693,110700.0,110690.0,0.61470193]
[1747895648924,0.21880002,110700.0,110690.0,0.6056677]
[1747895649116,0.20976693,110700.0,110690.0,0.61470193]
[1747895649242,0.21880002,110700.0,110690.0,0.6056677]
[1747895649443,0.21880002,110700.0,110690.0,0.61470193]
[1747895649444,0.20976693,110700.0,110690.0,0.61470193]
[1747895650228,0.20976693,110700.0,110690.0,0.6056677]
[1747895650470,0.21880002,110700.0,110690.0,0.6056677]
[1747895650703,0.22783328,110700.0,110690.0,0.6056677]
[1747895650880,0.21880002,110700.0,110690.0,0.6056677]
[1747895651083,0.24620002,110700.0,110690.0,0.6056677]
[1747895651807,0.25583482,110700.0,110690.0,0.343]
[1747895653167,0.24680173,110700.0,110690.0,0.6056677]
[1747895654719,0.24680173,110700.0,110690.0,0.343]
[1747895655952,0.23716816,110700.0,110690.0,0.6056677]
[1747895656799,0.50808816,110700.0,110690.0,0.6056677]
[1747895658521,0.46262115,110700.0,110690.0,0.79538672]
[1747895658729,0.47165408,110700.0,110690.0,0.6056677]
[1747895658949,0.48068717,110700.0,110690.0,0.6056677]
[1747895659576,0.48972034,110700.0,110690.0,0.6056677]
[1747895660130,0.47165408,110700.0,110690.0,0.60559607]
[1747895660347,0.47165408,110700.0,110690.0,0.61463022]
[1747895660561,0.46262115,110700.0,110690.0,0.79531501]
[1747895660769,0.48068709,110700.0,110690.0,0.60559607]
[1747895661404,0.46262115,110700.0,110690.0,0.78628086]
[1747895661615,0.471654,110700.0,110690.0,0.78628086]
[1747895661831,0.48068701,110700.0,110690.0,0.6146303]
[1747895662264,0.48068701,110700.0,110690.0,0.82241681]
[1747895662265,0.002,110700.0,110690.0,0.82241681]
[1747895662502,0.002,110700.0,110690.0,2.49303837]
[1747895662724,0.002,110700.0,110690.0,1.605411]
[1747895662929,0.002,110700.0,110690.0,1.919758]
[1747895664419,0.002,110700.0,110690.0,1.93429885]
[1747895664630,0.98350958,110730.0,110720.0,0.45233515]
[1747895664837,1.26346023,110730.0,110720.0,0.27169941]
[1747895665046,1.26346007,110730.0,110720.0,0.27169949]
[1747895665249,1.2724908,110730.0,110720.0,0.27169949]
[1747895665477,1.28152169,110730.0,110720.0,0.2626677]
[1747895665697,1.2724908,110730.0,110720.0,0.2626677]
[1747895665936,1.28552169,110730.0,110720.0,0.26375974]
[1747895666767,1.30279137,110730.0,110720.0,0.26375974]
[1747895667581,1.30879137,110730.0,110720.0,0.26475974]
[1747895670195,1.29976097,110730.0,110720.0,0.26475974]
[1747895672135,0.01,110730.0,110720.0,0.80345874]
[1747895672357,0.47052992,110730.0,110720.0,0.60475974]
[1747895672566,0.47956048,110730.0,110720.0,0.61379145]
[1747895672784,0.19964992,110730.0,110720.0,0.62282307]
[1747895673007,0.19964992,110730.0,110720.0,0.81249044]
[1747895673008,0.47052992,110730.0,110720.0,0.81249044]
[1747895673212,0.47052992,110730.0,110720.0,0.8215219]
[1747895673393,0.46452992,110730.0,110720.0,0.81149044]
[1747895673786,0.46352992,110730.0,110720.0,0.81149044]
[1747895673985,0.46352992,110730.0,110720.0,0.8205219]
[1747895674186,0.4725604,110730.0,110720.0,0.81149044]
[1747895674614,0.46552992,110730.0,110720.0,0.8205219]
[1747895674946,0.46552976,110730.0,110720.0,1.0488932]
[1747895675151,0.45649952,110730.0,110720.0,1.04889271]
[1747895675359,0.45649952,110730.0,110720.0,1.03986149]
[1747895675566,0.46552976,110730.0,110720.0,1.03986149]
[1747895675760,0.27588,110730.0,110720.0,1.07619271]
[1747895676018,0.27588,110730.0,110720.0,1.33886041]
[1747895676245,0.005,110730.0,110720.0,2.11382682]
[1747895676461,0.005,110730.0,110720.0,2.47509682]
[1747895676671,0.27088,110760.0,110750.0,0.81034172]
[1747895676879,0.27088,110760.0,110750.0,0.81034164]
[1747895677179,0.96056222,110770.0,110760.0,0.52959913]
[1747895677404,0.18964222,110770.0,110760.0,0.80129519]
[1747895677613,0.48027043,110780.0,110760.0,1.62069249]
[1747895677820,0.48027043,110780.0,110770.0,0.27169541]
[1747895677821,0.48929684,110780.0,110770.0,0.27169541]
[1747895678034,0.48929692,110780.0,110770.0,0.79224971]
[1747895678246,0.49832349,110780.0,110770.0,0.6026677]
[1747895678417,0.4971803,110780.0,110770.0,0.6026677]
[1747895678684,0.49718096,110780.0,110770.0,0.6026677]
[1747895678893,0.00050865,110780.0,110770.0,0.83820415]
[1747895679102,0.00050865,110780.0,110770.0,0.79224963]
[1747895679103,0.19909922,110780.0,110770.0,0.79224963]
[1747895679283,0.19909922,110780.0,110770.0,0.80127718]
[1747895679522,0.19909922,110780.0,110770.0,0.81030465]
[1747895679728,0.19909922,110780.0,110770.0,0.80127718]
[1747895679881,0.18104665,110780.0,110770.0,0.8012771]
[1747895680234,0.20309913,110780.0,110770.0,0.8012771]
[1747895680640,0.20309913,110780.0,110770.0,0.81030456]
[1747895680861,0.19407281,110780.0,110770.0,0.81933186]
[1747895681071,0.20309913,110780.0,110770.0,0.81030456]
[1747895681251,0.20309913,110780.0,110770.0,1.21030465]
[1747895681498,0.20509913,110780.0,110770.0,1.21933203]
[1747895681956,0.19607281,110780.0,110770.0,1.22684649]
[1747895682172,0.20509922,110780.0,110770.0,1.21781902]
[1747895682384,0.19607281,110780.0,110770.0,1.21781902]
[1747895682610,0.21412554,110780.0,110770.0,1.21781902]
[1747895682839,0.00650865,110780.0,110770.0,1.3539191]
[1747895683075,0.00650865,110780.0,110770.0,1.3825191]
[1747895683561,0.00650865,110780.0,110770.0,1.36597726]
[1747895683782,0.00250865,110780.0,110770.0,1.07470956]
[1747895684018,0.00250865,110780.0,110770.0,1.33737726]
[1747895684506,0.00150865,110780.0,110770.0,1.33737726]
[1747895684764,0.00150865,110780.0,110770.0,1.60917726]
[1747895685022,0.00050865,110780.0,110770.0,1.60917726]
[1747895685242,0.00050865,110780.0,110770.0,1.23838615]
[1747895685465,0.00050865,110780.0,110770.0,1.21130415]
[1747895685683,0.00050865,110780.0,110770.0,1.23820415]
[1747895686329,0.00050865,110780.0,110770.0,1.25456867]
[1747895686547,0.00050865,110780.0,110770.0,1.23820415]
[1747895686777,0.00150865,110780.0,110770.0,1.32774971]
[1747895687005,0.00150865,110780.0,110770.0,1.71545971]
[1747895687240,0.00150865,110780.0,110770.0,1.98621971]
[1747895688107,0.00150865,110780.0,110770.0,1.95961971]
[1747895688330,0.00150865,110780.0,110770.0,1.66195971]
[1747895688824,0.00150865,110780.0,110770.0,1.68825971]
[1747895690134,0.00150865,110780.0,110770.0,1.71565971]
[1747895690341,0.00150865,110780.0,110770.0,1.37565971]
[1747895691082,0.00150865,110780.0,110770.0,1.39180464]
[1747895691504,0.00150865,110780.0,110770.0,1.37565971]
[1747895692086,0.00150865,110780.0,110770.0,1.71565971]
[1747895692714,0.00150865,110780.0,110770.0,1.45299201]
[1747895692902,0.00150865,110780.0,110770.0,1.42559201]
[1747895693108,0.00150865,110780.0,110770.0,1.68825971]
[1747895696425,0.00150865,110780.0,110770.0,1.34825971]
[1747895697700,0.00150865,110780.0,110770.0,1.37533971]
[1747895698539,0.00150865,110780.0,110770.0,1.64605971]
[1747895699201,0.02150865,110780.0,110770.0,1.98605971]
[1747895700678,0.02150865,110780.0,110770.0,2.00237279]
[1747895701268,0.02150865,110780.0,110770.0,1.97607279]
[1747895701702,0.02150865,110780.0,110770.0,1.95975971]
[1747895702323,0.00150865,110780.0,110770.0,1.95975971]
[1747895702991,0.00150865,110780.0,110770.0,1.98835971]
[1747895704898,0.00833539,110800.0,110780.0,0.35454085]
[1747895705155,0.00833539,110800.0,110790.0,4.06109395]
[1747895705391,0.31553597,110830.0,110820.0,0.20754277]
[1747895705620,0.50335837,110830.0,110820.0,0.85216409]
[1747895705844,0.23263837,110830.0,110820.0,0.86118756]
[1747895706114,0.23263837,110830.0,110820.0,0.87021095]
[1747895706353,0.24166079,110830.0,110820.0,0.85216409]
[1747895706574,0.24166079,110830.0,110820.0,0.8612796]
[1747895706789,0.24166079,110830.0,110820.0,0.85225613]
[1747895707004,0.24166079,110830.0,110820.0,0.86127952]
[1747895707225,0.24166079,110830.0,110820.0,0.87030299]
[1747895707449,0.24166079,110830.0,110820.0,0.66275974]
[1747895707735,0.28610611,110830.0,110820.0,0.66275974]
[1747895707973,0.25903927,110830.0,110820.0,9.204e-05]
[1747895708193,0.99906483,110830.0,110820.0,9.204e-05]
[1747895708398,1.00506483,110830.0,110820.0,9.204e-05]
[1747895709559,0.55376361,110830.0,110820.0,0.60275974]
[1747895709789,0.55328226,110830.0,110820.0,0.60275974]
[1747895710521,0.53523743,110830.0,110820.0,9.204e-05]
[1747895711515,0.52669669,110830.0,110820.0,9.204e-05]
[1747895713120,0.25601669,110830.0,110820.0,9.204e-05]
[1747895713364,0.61624225,110830.0,110820.0,9.204e-05]
[1747895714264,0.62478299,110830.0,110820.0,9.204e-05]
[1747895716695,0.63546156,110830.0,110820.0,9.204e-05]
[1747895717968,0.65546156,110830.0,110820.0,9.204e-05]
[1747895720033,0.64478299,110830.0,110820.0,9.204e-05]
[1747895720448,1.02458299,110830.0,110820.0,9.204e-05]
[1747895724410,0.2075615,110810.0,110800.0,0.6626677]
[1747895724616,0.4782415,110810.0,110800.0,0.66271862]
[1747895725698,0.2075615,110810.0,110800.0,0.66271862]
[1747895725910,0.2075615,110810.0,110800.0,0.67174389]
[1747895725911,0.4782415,110810.0,110800.0,0.67174389]
[1747895726113,0.4782415,110810.0,110800.0,0.66271862]
[1747895726491,0.4782415,110810.0,110800.0,1.00271862]
[1747895727528,0.4782415,110810.0,110800.0,1.02831862]
[1747895727896,0.4782415,110810.0,110800.0,0.62831862]
[1747895728326,0.4782415,110810.0,110800.0,1.02831862]
[1747895728709,0.4782415,110810.0,110800.0,1.00271862]
[1747895728895,0.4782415,110810.0,110800.0,0.60271862]
[1747895729296,0.2075615,110810.0,110800.0,0.60271862]
[1747895729490,0.46921713,110810.0,110800.0,0.61174389]
[1747895729747,0.48726571,110810.0,110800.0,0.60271862]
[1747895729958,0.19853713,110810.0,110800.0,0.8177493]
[1747895730169,0.46921713,110810.0,110800.0,0.8177493]
[1747895730390,0.46921713,110810.0,110800.0,0.82677448]
[1747895730575,0.27901679,110820.0,110810.0,0.57336142]
[1747895730865,0.21850097,110830.0,110820.0,0.03592364]
[1747895731130,0.02,110830.0,110820.0,0.87548982]
[1747895731333,0.02,110830.0,110820.0,1.30346782]
[1747895732013,0.02,110830.0,110820.0,1.10855882]
[1747895732441,0.023,110830.0,110820.0,1.10855882]
[1747895732654,0.02,110830.0,110820.0,1.10855882]
[1747895733000,0.021,110830.0,110820.0,1.10855882]
[1747895733243,0.021,110830.0,110820.0,1.07584082]
[1747895733466,0.023,110830.0,110820.0,1.07584082]
[1747895733684,0.023,110830.0,110820.0,1.37180282]
[1747895733895,0.21247864,110830.0,110820.0,1.31763329]
[1747895734103,0.23954589,110830.0,110820.0,1.0026677]
[1747895734359,0.2305238,110830.0,110820.0,1.0026677]
[1747895734566,0.2305238,110830.0,110820.0,1.01169134]
[1747895734759,0.23052372,110830.0,110820.0,1.0207149]
[1747895734958,0.22150114,110830.0,110820.0,1.21923459]
[1747895735171,0.23052364,110830.0,110820.0,1.2102112]
[1747895735375,0.23052364,110830.0,110820.0,1.20118773]
[1747895735595,0.23052364,110830.0,110820.0,1.01169134]
[1747895735830,0.023,110830.0,110820.0,1.21923411]
[1747895736289,0.20345655,110830.0,110820.0,1.21021104]
[1747895736498,0.21247864,110830.0,110820.0,1.21021104]
[1747895736644,0.21247864,110830.0,110820.0,1.24683411]
[1747895736858,0.20345655,110830.0,110820.0,1.24683411]
[1747895737060,0.023,110830.0,110820.0,1.24683411]
[1747895737679,0.20345655,110830.0,110820.0,1.21021104]
[1747895737863,0.21247872,110830.0,110820.0,1.21923419]
[1747895738064,0.20345655,110830.0,110820.0,1.22825726]
[1747895738315,0.03202209,110830.0,110820.0,1.25465726]
[1747895738516,0.21247864,110830.0,110820.0,1.24563419]
[1747895739197,0.23052355,110830.0,110820.0,1.0026677]
[1747895739336,0.023,110830.0,110820.0,1.32725603]
[1747895740347,0.02279671,110830.0,110820.0,1.32725603]
[1747895740779,0.02279671,110830.0,110820.0,0.98725603]
[1747895742946,0.02279671,110830.0,110820.0,1.32725603]
[1747895745080,0.02279671,110830.0,110820.0,1.36839688]
[1747895745323,0.60362048,110870.0,110860.0,0.34]
[1747895745324,0.48671044,110870.0,110860.0,0.34]
[1747895745559,0.2973,110870.0,110860.0,1.17095559]
[1747895745789,0.2706,110870.0,110860.0,1.17095559]
[1747895746024,0.2706,110870.0,110860.0,1.19855559]
[1747895746714,0.28077151,110870.0,110860.0,1.19855559]
[1747895746983,0.27175267,110870.0,110860.0,1.19855559]
[1747895747225,0.00115267,110870.0,110860.0,1.19855559]
[1747895747424,0.27175267,110870.0,110860.0,1.19855559]
[1747895747824,0.27175267,110870.0,110860.0,1.28810115]
[1747895748035,0.00115267,110870.0,110860.0,1.28810115]
[1747895748530,0.20860103,110870.0,110860.0,1.2514815]
[1747895748775,0.20860095,110870.0,110860.0,1.26050147]
[1747895749011,0.20860095,110870.0,110860.0,1.26952136]
[1747895749213,0.21762043,110870.0,110860.0,0.70082]
[1747895749443,0.24452043,110870.0,110860.0,0.7098403]
[1747895749673,0.24452043,110870.0,110860.0,1.1098403]
[1747895750057,0.33343159,110870.0,110860.0,0.36082]
[1747895750297,0.60589593,110870.0,110860.0,0.36082]
[1747895750534,0.20751483,110840.0,110820.0,0.895409]
[1747895750776,0.27056,110830.0,110820.0,1.33397763]
[1747895751009,0.27056,110830.0,110820.0,1.2817081]
[1747895751251,0.45101655,110830.0,110820.0,1.2997548]
[1747895751499,0.20754227,110820.0,110810.0,0.2626677]
[1747895751714,0.20754227,110820.0,110800.0,0.45215234]
[1747895751715,0.18048912,110810.0,110800.0,0.45215234]
[1747895751934,0.18050541,110800.0,110790.0,0.45221532]
[1747895752154,0.19853729,110810.0,110800.0,0.34907619]
[1747895752367,0.47816158,110810.0,110800.0,0.60271862]
[1747895752817,0.47816207,110810.0,110800.0,0.6345586]
[1747895753082,0.47816207,110810.0,110800.0,0.3015586]
[1747895753450,0.46913729,110810.0,110800.0,0.3015586]
[1747895753528,0.46913729,110810.0,110800.0,0.65058387]
[1747895753751,0.45108912,110810.0,110800.0,0.84011438]
[1747895753982,0.45107283,110820.0,110810.0,0.54756166]
[1747895754203,0.4600959,110820.0,110810.0,0.81022936]
[1747895754433,0.47814244,110820.0,110810.0,0.79218119]
[1747895754663,0.46911905,110820.0,110810.0,0.79218119]
[1747895754874,0.47814244,110820.0,110810.0,0.79218119]
[1747895755172,0.47814244,110820.0,110810.0,0.79418119]
[1747895755413,0.47814244,110820.0,110810.0,0.79618119]
[1747895755849,0.47814244,110820.0,110810.0,0.6066677]
[1747895756058,0.47814244,110820.0,110810.0,1.0066677]
[1747895756235,0.47814244,110820.0,110810.0,1.01569215]
[1747895756451,0.47814244,110820.0,110810.0,1.02471652]
[1747895756658,0.4600959,110820.0,110810.0,1.22325397]
[1747895756858,0.4781426,110820.0,110810.0,1.01569215]
[1747895758050,0.4781426,110820.0,110810.0,1.0066677]
[1747895758249,0.4781426,110820.0,110810.0,1.01569215]
[1747895758475,0.4781426,110820.0,110810.0,1.0066677]
[1747895759072,0.48716624,110820.0,110810.0,1.0066677]
[1747895759291,0.49611994,110820.0,110810.0,0.344]
[1747895760411,0.46911905,110820.0,110810.0,0.61569199]
[1747895760629,0.47814244,110820.0,110810.0,0.79618127]
[1747895760831,0.47814244,110820.0,110810.0,0.6066677]
[1747895761114,0.47814244,110820.0,110810.0,0.004]
[1747895761115,0.52071978,110820.0,110810.0,0.004]
[1747895761375,0.61026534,110820.0,110810.0,0.004]
[1747895761577,0.52071978,110820.0,110810.0,0.004]
[1747895761810,0.49471978,110820.0,110810.0,0.004]
[1747895761980,0.00902445,110810.0,110800.0,0.60271862]
[1747895762193,0.21658546,110810.0,110800.0,0.60271862]
[1747895763144,0.19853778,110810.0,110800.0,0.34005092]
[1747895763362,0.22463778,110810.0,110800.0,0.34005092]
[1747895763967,0.22463778,110810.0,110800.0,0.34205092]
[1747895764789,0.25093778,110810.0,110800.0,0.34405092]
[1747895767289,0.25093778,110810.0,110800.0,0.34405092]
[1747895768550,0.30306024,110810.0,110800.0,0.00405092]
[1747895768809,1.01725104,110810.0,110800.0,0.00405092]
[1747895769066,1.04179189,110810.0,110800.0,0.00405092]
[1747895769300,1.0464977,110810.0,110800.0,0.00205092]
[1747895769800,0.2167028,110750.0,110740.0,0.03183998]
[1747895770020,0.47835329,110750.0,110740.0,0.58907116]
[1747895770232,0.47835329,110750.0,110740.0,0.24907116]
[1747895770443,0.47835329,110750.0,110740.0,0.23101191]
[1747895770660,0.47835329,110750.0,110740.0,0.57101207]
[1747895770661,0.49641156,110750.0,110740.0,0.57101207]
[1747895770846,0.48738295,110750.0,110740.0,0.58004198]
[1747895771018,0.4783541,110750.0,110740.0,0.21295184]
[1747895771355,0.4783541,110750.0,110740.0,0.43234863]
[1747895771570,0.4783541,110750.0,110740.0,0.04710644]
[1747895771571,0.46932517,110750.0,110740.0,0.04710644]
[1747895771780,0.46932517,110750.0,110740.0,0.38710644]
[1747895772189,0.18058454,110760.0,110740.0,0.56770965]
[1747895772424,0.19862724,110760.0,110750.0,0.81937098]
[1747895772629,0.85637528,110760.0,110750.0,0.34]
[1747895772844,0.85645528,110760.0,110750.0,0.34]
[1747895773050,0.84742724,110760.0,110750.0,0.34]
[1747895773256,0.86419904,110760.0,110750.0,0.34]
[1747895773466,0.18961608,110750.0,110740.0,0.03434863]
[1747895773686,0.24131608,110750.0,110740.0,0.03434863]
[1747895773893,0.24131608,110750.0,110740.0,0.37434863]
[1747895774133,0.24131608,110750.0,110740.0,0.34250865]
[1747895774346,0.24131608,110750.0,110740.0,0.34550865]
[1747895774545,0.33086164,110750.0,110740.0,0.00350865]
[1747895774957,0.33086164,110750.0,110740.0,0.00050865]
[1747895775391,0.33086164,110750.0,110740.0,0.00150865]
[1747895776000,0.33086164,110750.0,110740.0,0.00250865]
[1747895776247,0.74496164,110750.0,110740.0,0.00250865]
[1747895776669,0.33086164,110750.0,110740.0,0.00150865]
[1747895777438,0.34415804,110750.0,110740.0,0.00150865]
[1747895782421,1.04827311,110750.0,110740.0,0.00150865]
[1747895782736,1.06281396,110750.0,110740.0,0.00150865]
[1747895783423,1.07129102,110750.0,110740.0,0.00150865]
[1747895783638,1.04394365,110750.0,110740.0,0.00150865]
[1747895783906,1.04894365,110750.0,110740.0,0.00250865]
[1747895784519,1.04894365,110750.0,110740.0,0.00150865]
[1747895784911,1.05294365,110750.0,110740.0,0.00250865]
[1747895786339,0.79027595,110750.0,110740.0,0.00250865]
[1747895786515,1.14246516,110750.0,110740.0,0.00250865]
[1747895786947,0.7757351,110750.0,110740.0,0.00250865]
[1747895787159,1.4238951,110750.0,110740.0,0.00250865]
[1747895788640,1.4239751,110750.0,110740.0,0.00250865]
[1747895788861,1.3974751,110750.0,110740.0,0.00250865]
[1747895789091,1.1265951,110750.0,110740.0,0.00250865]
[1747895789268,1.3974751,110750.0,110740.0,0.00250865]
[1747895790111,1.02087864,110750.0,110740.0,0.26517635]
[1747895790319,0.22038946,110750.0,110740.0,0.29227635]
[1747895790541,0.86491403,110750.0,110740.0,0.29227635]
[1747895790967,0.86491337,110750.0,110740.0,0.48190972]
[1747895791179,0.86894263,110750.0,110740.0,0.32560651]
[1747895791443,0.86894263,110750.0,110740.0,0.67463658]
[1747895791651,0.85891337,110750.0,110740.0,0.67363658]
[1747895791872,0.86794263,110750.0,110740.0,0.66460651]
[1747895792042,0.86994255,110750.0,110740.0,0.67363658]
[1747895792256,0.86994255,110750.0,110740.0,0.66460651]
[1747895792460,0.86994255,110750.0,110740.0,0.67363658]
[1747895792843,0.86994255,110750.0,110740.0,0.8722992]
[1747895792844,0.65324,110750.0,110740.0,0.8722992]
[1747895793277,0.27588,110750.0,110740.0,0.8722992]
[1747895793688,0.27588,110750.0,110740.0,1.2722992]
[1747895793930,0.27288,110750.0,110740.0,1.2722992]
[1747895794094,0.27288,110750.0,110740.0,1.27229929]
[1747895794256,0.46449551,110750.0,110740.0,1.27229929]
[1747895794463,0.004,110750.0,110740.0,1.28132887]
[1747895794669,0.004,110750.0,110740.0,1.37087443]
[1747895794867,0.002,110750.0,110740.0,1.37087443]
[1747895795311,0.003,110750.0,110740.0,1.37087443]
[1747895795519,0.002,110750.0,110740.0,1.37087443]
[1747895795721,0.002,110750.0,110740.0,2.47567243]
[1747895795898,0.002,110750.0,110740.0,2.47667243]
[1747895796105,0.27088,110760.0,110750.0,0.53864517]
[1747895796299,0.46950643,110760.0,110750.0,0.66409704]
[1747895796813,0.58495588,110770.0,110760.0,0.0524]
[1747895797018,0.5578743,110770.0,110760.0,0.85369511]
[1747895797219,0.5703445,110780.0,110770.0,0.5477543]
[1747895797420,0.5703445,110780.0,110770.0,0.85427702]
[1747895797620,0.570298,110780.0,110770.0,0.8633044]
[1747895797889,0.570298,110780.0,110770.0,0.85427702]
[1747895797890,0.180538,110780.0,110770.0,0.85427702]
[1747895798091,0.180538,110780.0,110770.0,0.8633044]
[1747895798310,0.180538,110780.0,110770.0,0.84524955]
[1747895798518,0.20761706,110780.0,110770.0,0.393]
[1747895798726,0.21664371,110780.0,110770.0,0.6556677]
[1747895799343,0.22567044,110780.0,110770.0,0.3672]
[1747895799556,0.22567044,110780.0,110770.0,0.6298677]
[1747895800432,0.22567044,110780.0,110770.0,1.0298677]
[1747895801141,0.20761706,110780.0,110770.0,1.0298677]